Cogmind - Beta 14 @@@ ROGUE MODE // 2025.04.23 @ 17:04:36 Player: kilner Result: Destroyed by G-47 Trooper with Particle Gun Performance ------------- Evolutions (2) 1000 Regions Visited (4) 800 Robots Destroyed (14) 70 Value Destroyed (204) 204 Prototype IDs (1) 20 Alien Tech Used (0) 0 Bonus (95) 95 TOTAL SCORE: 2189 Bonus ------- Follower Combat Kills 95 Cogmind --------- Core Integrity 0/550 Matter 200/300 Energy 80/100 System Corruption 0% Temperature Cool (9) Movement Core (150) Ox2 Location -8/Materials Parts ------- > --- POWER (1) -------- (None) > --- PROPULSION (2) --- (None) > --- UTILITY (6) ------ (None) > --- WEAPON (2) ------- Assault Cannon Katana > --- INVENTORY (5) ---- (None) Peak State ------------ > --- POWER ------------ Light Angular Momentum Engine > --- PROPULSION ------- Flight Unit Flight Unit > --- UTILITY ---------- Improved Terrain Scanner Thief Drone Bay > --- WEAPON ----------- Datajack Mining Laser > --- INVENTORY -------- Ion Engine Light Ion Engine Flight Unit Improved Heat Sink [Rating: 19] Favorites ----------- Power Light Ion Engine Engine Light Ion Engine Propulsion Flight Unit Wheel Compact Wheel Flight Unit Flight Unit Utility Improved Terrain Scanner Device Improved Terrain Scanner Storage Medium Storage Unit Protection Scrap Shield Weapon Mining Laser Energy Gun EM Pulse Gun Ballistic Gun Assault Rifle Ballistic Cannon Assault Cannon Special Weapon Mining Laser Slashing Weapon Mining Claw Special Melee Weapon Datajack Build | -11 -10 -10 -10 -8 ------- Run | Yrd Mat Min Sub Mat Slots Evolved 4 | . . . . 4 Power . | . . . . . Propulsion . | . . . . . Utility 4 | . . . . 4 Weapon . | . . . . . Parts Attached 33 | 7 6 6 3 11 Power 3 | 1 . 1 . 1 Engine 3 | 1 . 1 . 1 Core . | . . . . . Reactor . | . . . . . Propulsion 7 | 2 . 2 1 2 Treads . | . . . . . Leg . | . . . . . Wheel 2 | 2 . . . . Hover . | . . . . . Flight 5 | . . 2 1 2 Utility 11 | 2 1 2 2 4 Device 8 | 1 . 2 1 4 Storage 2 | 1 1 . . . Processor . | . . . . . Hackware . | . . . . . Protection 1 | . . . 1 . Artifact . | . . . . . Weapon 12 | 2 5 1 . 4 Energy Gun 4 | 2 1 . . 1 Energy Cannon . | . . . . . Ballistic Gun 1 | . 1 . . . Ballistic Cannon 1 | . . . . 1 Launcher . | . . . . . Special Weapon 1 | . 1 . . . Impact Weapon . | . . . . . Slashing Weapon 2 | . 1 . . 1 Piercing Weapon . | . . . . . Special Melee Weapon 3 | . 1 1 . 1 Unidentified Prototypes 1 | . . 1 . . Parts Lost 12 | . . . 5 7 Power 2 | . . . 1 1 Propulsion 3 | . . . 2 1 Utility 4 | . . . 1 3 Weapon 3 | . . . 1 2 Highest Loss Streak 5 | . . . 5 5 To Critical Strikes . | . . . . . Average Slot Usage (%) 74 | . 96 87 65 32 Engine 11 | . 14 14 13 2 Wheel 4 | . 28 1 . . Flight 19 | . . 26 26 2 Device 14 | . 14 19 . 20 Storage 6 | . 14 8 . . Protection 2 | . . . 12 . Energy Gun 1 | . 9 . . 4 Special Weapon 9 | . 1 14 12 . Special Melee Weapon 1 | . 3 2 . . Peak Build Rating 19 | 9 10 19 18 18 Average Rating 11 | 6 8 12 12 11 On Entrance 7 | . 9 9 18 2 Naked Turns . | . . . . . Heaviest Build 28 | 13 18 16 28 14 Greatest Support 26 | 26 26 26 8 8 Greatest Overweight (x) 4 | . . 3 3 4 Average Overweight (x) . | . . . 2 1 Largest Inventory Capacity 10 | 8 10 10 5 5 Average Capacity 7 | 7 8 8 5 5 Most Carried 10 | 5 9 10 5 4 Average Carried 4 | 2 6 5 4 . Final Capacity 10 | 8 10 5 5 5 Final Carried 9 | 5 9 5 5 . Class Distribution -------------------- 87% | Mutant 12% | Scavenger-Mutant Dominant Class ---------------- Mutant | -10/Materials Mutant | -10/Mines Mutant | -10/Subcaves Mutant | -8/Materials Resources | -11 -10 -10 -10 -8 ----------- Run | Yrd Mat Min Sub Mat Matter Collected 506 | 270 66 70 20 80 Remotely . | . . . . . Salvage Created 446 | 131 78 30 . 207 Parts 36 | 13 3 1 . 19 Haulers Intercepted 2 | . 1 . . 1 Recyclers Shooed . | . . . . . Parts Field Recycled . | . . . . . Retrieved Matter . | . . . . . Parts Self-Destructed 2 | . . . 2 . Prevented . | . . . . . Kills | -11 -10 -10 -10 -8 ------- Run | Yrd Mat Min Sub Mat Combat Hostiles Destroyed 7 | . 1 . . 6 Guns 5 | . 1 . . 4 Cannons 2 | . . . . 2 Classes Destroyed 7 | 3 2 . . 2 Worker 2 | 1 . 1 . . Tunneler 2 | 2 . . . . Hauler 2 | . 1 . . 1 Recycler 1 | 1 . . . . Swarmer 4 | . . . . 4 Grunt 2 | . 1 . . 1 Duelist 1 | . . . . 1 Best Kill Streak 3 | 2 2 1 . 3 Combat Bots Only 3 | . 1 . . 3 Max Kills in Single Turn 1 | 1 1 1 . 1 Gunslinging . | . . . . . Exploded . | . . . . . Melee . | . . . . . Uniques/NPCs Destroyed . | . . . . . Combat | -11 -10 -10 -10 -8 -------- Run | Yrd Mat Min Sub Mat Hostile Shots Fired 176 | . 8 5 36 127 Missed 58 | . 2 . 17 39 Damage Taken 1654 | . 69 83 418 1084 Core 709 | . 20 24 108 557 Absorbed by Shields . | . . . . . Core Remaining (%) 69 | 100 . . 39 . Volleys Fired 57 | 12 6 3 . 36 Largest 2 | 2 2 1 . 1 Hottest 100 | 90 60 100 . 44 Shots Fired 75 | 24 12 3 . 36 Gun 55 | 24 12 . . 19 Cannon 17 | . . . . 17 Launcher . | . . . . . Special 3 | . . 3 . . Kinetic 23 | . 6 . . 17 Thermal 34 | 12 . 3 . 19 Explosive . | . . . . . Electromagnetic 18 | 12 6 . . . Robot Hit Streak 5 | 4 4 . . 5 Robot Miss Streak 3 | 2 3 1 . 2 Penetration Max . | . . . . . Secondary Targets . | . . . . . Shots Hit Robots 48 | 14 9 1 . 24 Core Hits 25 | 5 3 2 . 15 Critical Kills . | . . . . . Critical Parts Destroyed . | . . . . . Critical Strikes 2 | 2 . . . . Burn 2 | 2 . . . . Melee Attacks 6 | . 3 1 . 2 Impact . | . . . . . Slashing . | . . . . . Piercing . | . . . . . Sneak Attacks 3 | . 3 . . . Combat Hostiles . | . . . . . Follow-up Attacks . | . . . . . Damage Inflicted 709 | 181 84 33 . 411 Guns 413 | 181 68 . . 164 Cannons 238 | . . . . 238 Explosions . | . . . . . Melee . | . . . . . Ramming 58 | . 16 33 . 9 Kinetic 279 | . 41 . . 238 Thermal 263 | 99 . . . 164 Explosive . | . . . . . Electromagnetic 109 | 82 27 . . . Impact . | . . . . . Slashing . | . . . . . Piercing . | . . . . . Highest Corruption . | . . . . . Average Corruption . | . . . . . Corruption Purged . | . . . . . Corruption Blocked . | . . . . . Overload Shots . | . . . . . Overflow Damage 2 | . . . . 2 Projectiles 2 | . . . . 2 Explosions . | . . . . . Melee . | . . . . . Knockbacks 4 | . . . . 4 Impact . | . . . . . Kinetic 4 | . . . . 4 Secondary . | . . . . . Self-Inflicted Damage 27 | . 8 15 . 4 Shots . | . . . . . Rammed 8 | . 1 6 . 1 Targets Rammed 8 | . 1 6 . 1 Kicked . | . . . . . Crushed . | . . . . . Highest Temperature 150 | 150 30 28 . 9 Average Temperature 36 | 54 18 13 . 4 Received Heat Transfer 468 | . 36 33 84 315 Siege Activations . | . . . . . Robots Corrupted . | . . . . . Combat Hostiles . | . . . . . Parts Fried . | . . . . . Impact Corruptions . | . . . . . Robots Melted . | . . . . . Combat Hostiles . | . . . . . Parts Melted . | . . . . . Heat Transferred 819 | 444 . . . 375 Parts Sabotaged . | . . . . . Parts Stolen . | . . . . . Parts Stripped . | . . . . . Power Chain Reactions . | . . . . . Alert | -11 -10 -10 -10 -8 ------- Run | Yrd Mat Min Sub Mat Peak Influence 219 | 20 70 115 . 219 Initial 27 | . 13 27 . . Average 53 | 6 20 63 . 66 Maximum Alert Level 1 | . . . . 1 Low Security (%) 99 | 100 100 100 . 96 Level 1 . | . . . . 3 Level 2 . | . . . . . Level 3 . | . . . . . Level 4 . | . . . . . Level 5 . | . . . . . High Security . | . . . . . Max Security . | . . . . . Squads Dispatched . | . . . . . Investigation . | . . . . . Extermination . | . . . . . Reinforcement . | . . . . . Assault . | . . . . . Garrison . | . . . . . Intercept . | . . . . . Searches Triggered . | . . . . . Construction Impeded . | . . . . . Haulers Reinforced . | . . . . . Active Scanning Responses . | . . . . . Cargo Convoy Interrupts . | . . . . . Stealth | -11 -10 -10 -10 -8 --------- Run | Yrd Mat Min Sub Mat Distress Signals 2 | . . . . 2 Communications Jammed . | . . . . . Distress Signals . | . . . . . Times Spotted 39 | . 4 7 9 19 Peak Tracking Total 10 | . 3 3 7 10 Tactical Retreats 2 | . . . . 2 Traps | -11 -10 -10 -10 -8 ------- Run | Yrd Mat Min Sub Mat Traps Triggered . | . . . . . Indirectly . | . . . . . Trap Hack Attempts . | . . . . . Triggered . | . . . . . Disarmed . | . . . . . Reprogrammed . | . . . . . Reused . | . . . . . Traps Extracted . | . . . . . Installed . | . . . . . Triggered . | . . . . . Most Traps Carried 1 | . . 1 . . Machines | -11 -10 -10 -10 -8 ---------- Run | Yrd Mat Min Sub Mat Machines Disabled 1 | . . . . 1 Max in Single Turn 1 | . . . . 1 Machines Repaired . | . . . . . Machines Dismantled . | . . . . . Machines Sabotaged . | . . . . . Overloaded Fab Kills . | . . . . . Hacking | -11 -10 -10 -10 -8 --------- Run | Yrd Mat Min Sub Mat Machines Accessed 1 | . . 1 . . Terminals . | . . . . . Fabricators . | . . . . . Repair Stations . | . . . . . Recycling Units . | . . . . . Scanalyzers . | . . . . . Garrison Access . | . . . . . Total Hacks 1 | . . 1 . . Successful 1 | . . 1 . . Failed . | . . . . . Catastrophic . | . . . . . Database Lockouts . | . . . . . Manual . | . . . . . Terminals . | . . . . . Fabricators . | . . . . . Repair Stations . | . . . . . Recycling Units . | . . . . . Scanalyzers . | . . . . . Garrison Access . | . . . . . Terminal Hacks 1 | . . 1 . . Open Door 1 | . . 1 . . Fabricator Hacks . | . . . . . Repair Station Hacks . | . . . . . Recycling Unit Hacks . | . . . . . Scanalyzer . | . . . . . Garrison Access Hacks . | . . . . . Unauthorized Hacks . | . . . . . Terminals . | . . . . . Fabricators . | . . . . . Repair Stations . | . . . . . Recycling Units . | . . . . . Scanalyzers . | . . . . . Garrison Access . | . . . . . Data Cores Recovered . | . . . . . Used . | . . . . . Hacking Detections . | . . . . . Full Trace Events . | . . . . . Feedback Events . | . . . . . Feedback Blocked . | . . . . . Robot Schematics Acquired . | . . . . . Robots Built . | . . . . . Authchips . | . . . . . Time . | . . . . . Total Robot Build Rating . | . . . . . Part Schematics Acquired . | . . . . . Parts Built . | . . . . . Authchips . | . . . . . Time . | . . . . . Total Part Build Rating . | . . . . . Parts Repaired . | . . . . . Time . | . . . . . Parts Recycled . | . . . . . Recycled Matter . | . . . . . Retrieved Matter . | . . . . . Retrieved Components . | . . . . . Parts Scanalyzed . | . . . . . Part Schematics Acquired . | . . . . . Parts Damaged . | . . . . . Bothacking | -11 -10 -10 -10 -8 ------------ Run | Yrd Mat Min Sub Mat Used RIF Installer . | . . . . . Robots Hacked 4 | . 2 1 . 1 Non-combat 2 | . 2 . . . Combat 2 | . . 1 . 1 Robot Hacks Applied 4 | . 2 1 . 1 parse_system 4 | . 2 1 . 1 Relay Couplers Released . | . . . . . Fabnet Peak Effective % . | . . . . . Robots Rewired . | . . . . . Allies Hacked . | . . . . . Hacks Repelled . | . . . . . Allies | -11 -10 -10 -10 -8 -------- Run | Yrd Mat Min Sub Mat Total Allies 3 | . . 3 . . Largest Group 3 | . . 3 . . Highest-Rated Group 40 | . . 40 . . Highest-Rated Ally 16 | . . 16 . . Total Orders . | . . . . . Ally Attacks 31 | . . 31 . . Total Damage 233 | . . 233 . . Kills 7 | . . 7 . . Allies Corrupted . | . . . . . Allies Melted . | . . . . . Intel | -11 -10 -10 -10 -8 ------- Run | Yrd Mat Min Sub Mat Robot Analysis Total . | . . . . . Derelict Logs Recovered 1 | . . 1 . . Drone Launches . | . . . . . Drone Recoveries . | . . . . . Exploration | -11 -10 -10 -10 -8 ------------- Run | Yrd Mat Min Sub Mat Turns Passed 1712 | 116 182 803 334 277 Spaces Moved 1195 | 72 159 651 161 152 Core 134 | 9 . . . 125 Treads . | . . . . . Legs . | . . . . . Wheels 263 | 63 159 41 . . Hover . | . . . . . Flight 798 | . . 610 161 27 Fastest Speed 37 | 50 90 37 40 50 Average Speed 122 | 85 90 115 200 117 Slowest Speed 285 | 90 90 285 277 250 Overloaded Moves . | . . . . . Propulsion Burnouts . | . . . . . Robots Hopped . | . . . . . Cave-ins Triggered . | . . . . . Exploration Rate (%) 33 | 5 32 91 14 25 Regions Visited 4 Branch Regions 2 Pre-discovered Areas . | . . . . . Known Exits Taken . | . . . . . Unknown Exits Taken 4 | 1 1 1 1 . Scrap Searched 1 | . . 1 . . Spaces Dug 1 | . . 1 . . Terrain Destroyed 4 | . . 1 . 3 Melee . | . . . . . Projectile 4 | . . 1 . 3 AOE . | . . . . . Terrain Rammed . | . . . . . Walls Destroyed . | . . . . . Machines Disabled . | . . . . . Actions | -11 -10 -10 -10 -8 --------- Run | Yrd Mat Min Sub Mat Total 1370 | 102 184 696 172 216 Wait 11 | . . 6 . 5 Move 1191 | 71 158 650 160 152 Hop . | . . . . . Pick Up 37 | 12 5 10 4 6 Fast Attach 1 | . . . 1 . Attach 25 | 7 2 3 2 11 Detach 3 | . 3 . . . Swap 7 | . 4 3 . . Drop 24 | . 2 14 5 3 Fire 57 | 12 6 3 . 36 Melee 6 | . 3 1 . 2 Ram 8 | . 1 6 . 1 Kick . | . . . . . Crush . | . . . . . Escape Stasis . | . . . . . Rewire . | . . . . . Trap . | . . . . . Miscellaneous . | . . . . . Route ------- -11/Scrapyard -10/Materials -10/Mines (discovered 3 exits: [*Mat x2] / [*Sub]) -10/Subcaves -8/Materials (discovered 1 exit: Fac) History --------- Turn | Location | Event 22 | -11/Scrapyard | Discovered new exit (range 15) 117 | -11/Scrapyard | Entered Materials 235 | -10/Materials | Discovered new exit (range 8) 299 | -10/Materials | Entered Mines 301 | -10/Mines | Build established: Mutant 315 | -10/Mines | Discovered new exit (range 15) 318 | -10/Mines | Assisted by bots powering up and referring to "LRC-V3" 516 | -10/Mines | Discovered new exit (range 12) 645 | -10/Mines | Learned 2 Materials zone layouts 791 | -10/Mines | Discovered new exit (range 8) 799 | -10/Mines | Found the Drone Emporium 805 | -10/Mines | Found Prototype Device 806 | -10/Mines | Identified Thief Drone Bay 926 | -10/Mines | Found a hidden stash of uninstalled traps 1102 | -10/Mines | Entered Subcaves 1284 | -10/Subcaves | A swath of the cavern ceiling suddenly collapsed 1396 | -10/Subcaves | Ambushed by swarm of Subdwellers 1415 | -10/Subcaves | Core integrity fell below 50% 1429 | -10/Subcaves | Shifting Twisted Machinery released Mak. System Restoration Module 1431 | -10/Subcaves | Discovered new exit (range 9) 1436 | -10/Subcaves | Entered Materials 1436 | -8/Materials | Evolved 4 slots: Utility x4 1437 | -8/Materials | Identified exit to Factory 1446 | -8/Materials | Lost 5 parts (1p2n1u1w) 1654 | -8/Materials | Core integrity fell below 50% 1676 | -8/Materials | Lost 5 parts (1p2u2w) 1694 | -8/Materials | Core integrity fell below 20% 1713 | -8/Materials | Destroyed by G-47 Trooper with Particle Gun Last Messages --------------- S-10 Pest destroyed. Destroyed Flight Unit. S-10 Pest knocked back. R-06 Scavenger collects Lgt. Assault Rifle. G-47 Trooper knocked back. R-06 Scavenger collects Flight Unit. A-02 Transporter destroyed. R-06 Scavenger collects Transport Network Coupler. R-06 Scavenger collects EM Shotgun. Critical hit (Burn: +37). W-25 Informer sends out distress signal. L-31 Rogue destroyed. K-01 Serf collects debris. Imp. Terrain Scanner destroyed. M-28 Smith fits Backup Propulsion III on S-10 Pest. S-10 Pest destroyed. Acquired Katana. K-01 Serf collects debris. Map ----- +----------------------------------------------------+ | ?????????????????????????????????????????????????? | | ?????????????????????????????????????????????????? | | ?????????????????????????????????????????????????? | | ?????????????????????????????????????????????????? | | ?????????????????????????????????????????????????? | | ?????????????????????????????????????????????????# | | ?????????????????????????????????????????????????# | | ?????????????????????????????????????????????????# | | ??????????????????????? ???????????????????????# | | ??????????????????????? ???????????????????????# | | ??????????????????????# ???????????????????????# | | ??????????????????????# #??????????????????????# | | ??????????????????????# /??????????????????????# | | ??????????????????????# #??????????????????????# | | ??????????????????????# gg#??????????????????????# | | ??????????????######### b #??????????????????????# | | ??????????????? #?????????????????????? | | ???????????????? #?????????????????????? | | ?????????????????# #??????????????????????# | | ?????????????????# #??????????????????????# | | ?????????????????# #??????????????????????? | | ?????????????????# w#??????????????????????? | | ?????????????????# ##?????????????????????? | | ?????????????????# # ###########???????????? | | ?????????????????# # u k# #???????????? | | ?????????????????# # @g/[m #?????????#?? | | ?????????????????# #k !%g "" #?????#????#? | | ??????????????#### # %; """" #?????#?????# | | ??????????????? # #####;#Y""""%!* #?????????### | | ???????????????? / #????## """"[%% #???#?????# | | ?????????????????# #?????# """%%%=##??????#?# | | ?????????????????# #?????# g %[% #?????????# | | ??????????######?# ##########+##########???### ] | | ??????????# ! ?# [ | | ??????????# # ####????????#%* | | ??????????# # #????#??????#!= | | ??????????# """ + ###############???#???????# | | ??????????# """ # #????????????############## | | ??????????# """ # #????????????# | | ??????????######## ############## | | ????????????????# % | | ????????? ## ###########+########### | | ????? T ## #?????# #??#??# | | ?????? ## #???#?# """ #?????# | | ??????/########## ## #?????# """"" ###???# | | ????????????????######## #????## """"" #???#?# | | ??????????????????????## #?????# """"" #????## | | ???????????????????????# #????## """ #?????# | | ???????????????????????# #?????# #?#??## | | ???????????????????????# ^#?#??## #????## | +----------------------------------------------------+ Best States ------------- Heat Dissipation 31 Energy Generation 18 Energy Capacity 150 Matter Stores 300 Matter Capacity 300 Sight Range 16 Terrain Scan Range 16 Terrain Scan Density 10 Armor Coverage 800 Evasion (%) 62 Item Schematics ----------------- None Robot Schematics ------------------ None Fabricated ------------ Nothing Alien Tech Used ----------------- None Achievements -------------- None Challenges ------------ None Game ------ Seed CoordinationBarrageHammer Manual? 0 Play Time 00:22:19 Cumulative 5.3 hours Start 2025.04.23 @ 16:44:40 End 2025.04.23 @ 17:04:36 Sessions 1 Manual Loads 0 Difficulty Rogue Special Mode None Game No. 13 Rogue 12 Adventurer 0 Explorer 1 Win Type - Total 0 Types 0/0/0/0/0/0/0/0/0 Lore% 2 Gallery% 17 Achievement% 12 Wizard Run 0 Options --------- Layout 1 ASCII 0 Keyboard 0 Movement Mouse Keybinds 0 Fullscreen 1 Font 32/SmallcapsGlow Map View 50x35 Zoom Use 0% Tactical HUD 0 Map Filters NONE Filters NONE Steam 1 RUN: 5aa261d2-a64d-405c-a60c-a07023d5447e